[Event "Kvika Banki League Iceland 2022-23"]
[Site "Reykjavik"]
[Date "2022.10.14"]
[Round "2.6"]
[White "Briem, Stephan"]
[Black "Viglundsson, Bjorgvin"]
[Result "1-0"]
[ECO "E21"]
[WhiteElo "2083"]
[BlackElo "2205"]
[Annotator "TA"]
[PlyCount "123"]
[EventDate "2022.10.13"]
[EventType "team-tourn"]
[EventCountry "ISL"]
[SourceTitle "playchess.com"]
[Source "ChessBase"]
[SourceQuality "1"]
[TimeControl "5400+30"]

{[%evp 10,123,2,-3,9,10,4,2,3,3,4,5,39,34,37,35,36,33,45,27,38,38,38,33,43,47,56,56,51,42,42,42,43,43,54,36,29,31,33,29,25,31,31,25,45,6,60,59,175,177,173,180,165,157,161,114,163,158,152,120,106,120,120,120,120,106,106,106,106,106,106,106,106,100,1115,100,916,100,835,81,123,117,248,75,99,0,0,0,0,0,0,0,0,0,0,0,0,0,0,0,0,0,0,0,0,0,0,0,0,0,0,0,0,0,0,0]} 1. d4 {[%emt 0:00:03]} Nf6 {[%emt 0:00:06]} 2. c4 {[%emt 0:00:06]} e6 {[%emt 0:00:10]} 3. Nc3 {[%emt 0:00:08]} Bb4 {[%emt 0:00:07]} 4. Bd2 {[%emt 0:00:55]} O-O {[%emt 0:01:03]} 5. Nf3 {[%emt 0:00:05]} b6 {[%emt 0:00:35]} 6. e3 {[%emt 0:01:44]} Bxc3 {[%emt 0:06:24] E21: Nimzo-Indian: 4 Nf3.} 7. Bxc3 {[%emt 0:00:06]} Ne4 {[%emt 0:00:07]} 8. Bb4 {[%emt 0:01:56]} c5 {[%emt 0:00:54]} 9. Ba3 {[%emt 0:00:08]} d6 {[%emt 0:00:56]} 10. Be2 {[%emt 0:10:22]} Nd7 {[%emt 0:02:47]} 11. O-O {[%emt 0:03:45]} Bb7 {[%emt 0:00:19] [#]} 12. Nd2 $146 {[%emt 0:01:43]} ({Predecessor:} 12. Rc1 f5 13. b4 Qe7 14. Qd3 e5 15. bxc5 bxc5 16. dxe5 dxe5 17. Rfd1 Nb6 18. Qc2 {1-0 (37) Maghsoodloo,P (2664)-Meier,G (2628) chess24.com INT 2020}) 12... Qe7 {[%emt 0:07:43]} 13. Nxe4 {[%emt 0:01:55]} Bxe4 {[%emt 0:02:11]} 14. Bf3 {[%emt 0:00:08]} f5 {[%emt 0:13:20]} 15. Bxe4 {[%emt 0:10:06]} fxe4 {[%emt 0:00:03]} 16. Qc2 {[%emt 0:00:36]} Nf6 {[%emt 0:04:08]} 17. Rad1 {[%emt 0:03:31][%cal Ba1d1,Bd1d2,Bd2d4][%mdl 32]} Rac8 {[%emt 0:03:40]} 18. b3 {[%emt 0:02:14]} Rfd8 {[%emt 0:01:40]} 19. Rd2 {[%emt 0:07:57]} cxd4 {[%emt 0:12:28]} 20. Rxd4 {[%emt 0:05:16] Threatens to win with Rfd1.} e5 {[%emt 0:00:29]} 21. Rd2 {[%emt 0:02:38]} b5 {[%emt 0:00:40]} 22. Rfd1 {[%emt 0:12:41][%cal Ra3d6]} Rc6 {[%emt 0:00:32]} 23. Qb2 {[%emt 0:03:46]} bxc4 {[%emt 0:00:51]} 24. bxc4 {[%emt 0:00:38][%cal Oa3d6] aiming for Bxd6!} Qc7 {[%emt 0:04:00]} 25. h3 {[%emt 0:06:08]} Rb8 {[%emt 0:06:46]} 26. Qa1 {[%emt 0:02:09][%cal Ra3d6]} Rbb6 {[%emt 0:08:04]} 27. Kh2 {[%emt 0:17:00]} Nd7 {[%emt 0:01:41]} (27... Rxc4 $2 28. Bxd6 Qf7 29. Qxe5 $16 (29. Bxe5 h6 $18)) ({Black should play} 27... h5 $11) 28. Rb1 $14 {[%emt 0:02:35]} Nc5 {[%emt 0:02:31]} ({Black should try} 28... Ra6 $14 29. Rb3 Nb6) 29. Bxc5 $18 {[%emt 0:00:48]} Rxc5 {[%emt 0:00:43]} 30. Rxb6 {[%emt 0:00:18]} axb6 {[%emt 0:01:53][%mdl 4096] Endgame KQR-KQR} 31. Qd1 {[%emt 0:00:20]} Rc6 {[%emt 0:00:21]} 32. Qg4 {[%emt 0:02:41]} (32. Rb2 $18) 32... Qf7 {[%emt 0:06:38]} (32... g6 $16 {is a better defense.}) 33. Qxe4 {[%emt 0:00:13]} Qxc4 {[%emt 0:00:38]} 34. Qxc4+ {[%emt 0:01:20]} Rxc4 {[%emt 0:00:03]} 35. Rxd6 {[%emt 0:00:02] KR-KR} Rc2 {[%emt 0:00:19][%csl LRa2,LRf2]} 36. Kg3 {[%emt 0:00:39]} Rxa2 {[%emt 0:00:04]} 37. Rxb6 {[%emt 0:00:03] Black must now prevent Rb5.} Kf7 {[%emt 0:00:48]} 38. Kf3 {[%emt 0:01:21]} h5 {[%emt 0:01:01][%cal Oe5e4]} 39. g4 {[%emt 0:01:14]} hxg4+ {[%emt 0:00:26]} 40. hxg4 {[%emt 0:00:01]} Rc2 {[%emt 0:00:53]} 41. g5 {[%emt 0:00:28]} Ra2 $2 {[%emt 0:01:53][%mdl 8192]} (41... e4+ $16 42. Kxe4 Rxf2) 42. Rc6 $2 {[%emt 0:00:15]} (42. e4 $18 Ra7 43. g6+ Ke7 44. Kg4) 42... Rb2 $2 {[%emt 0:00:42][%mdl 8192]} (42... e4+ $16 43. Kxe4 Rxf2) 43. Ra6 $2 {[%emt 0:00:01]} (43. Rc5 $18 {is more deadly.} Ke6 44. e4) 43... Rc2 $2 {[%emt 0:00:24][%mdl 8192]} (43... e4+ $16 44. Kg3 (44. Kxe4 Rxf2 45. Ke5 Rg2 $16) 44... Re2 45. g6+ Ke7) 44. Kg3 $2 {[%emt 0:01:18]} (44. e4 $18 {has better winning chances.} Rc8 45. g6+ Ke7 46. Kg4) 44... Re2 {[%emt 0:02:19]} 45. Rb6 {[%emt 0:00:20] Kf3 is the strong threat.} Rc2 {[%emt 0:01:37] [#]} (45... Re1 $16 {was necessary.}) 46. f3 $2 {[%emt 0:00:59]} (46. e4 $1 $18 {and the rest is easy.}) 46... Rc3 {[%emt 0:01:19] [#]} 47. g6+ {[%emt 0:00:38]} (47. e4 $1 $16) 47... Ke7 $11 {[%emt 0:00:13] The position is equal.} 48. e4 {[%emt 0:00:18]} Rc1 {[%emt 0:01:13]} 49. Kg4 {[%emt 0:00:27]} Rf1 {[%emt 0:03:21]} 50. Rb7+ {[%emt 0:00:05]} Kf6 {[%emt 0:00:41]} 51. Rb6+ {[%emt 0:00:01]} Ke7 {[%emt 0:00:07]} 52. Ra6 {[%emt 0:00:04]} Rf2 {[%emt 0:00:19]} 53. Ra7+ {[%emt 0:01:12]} Kf6 {[%emt 0:00:04]} 54. Ra6+ {[%emt 0:00:01]} Ke7 {[%emt 0:00:17]} 55. Kg5 {[%emt 0:01:54] And now Ra7+ would win.} Rxf3 {[%emt 0:01:45]} 56. Ra7+ {[%emt 0:00:01]} Ke6 {[%emt 0:02:30]} 57. Rxg7 {[%emt 0:00:33]} Rg3+ {[%emt 0:00:10]} 58. Kh5 {[%emt 0:00:10]} Rh3+ $1 {[%emt 0:00:19]} 59. Kg4 {[%emt 0:00:36]} Rh1 {[%emt 0:00:04]} 60. Ra7 {[%emt 0:00:29]} Kf6 {[%emt 0:01:48]} 61. Ra6+ {[%emt 0:00:12]} Kg7 {[%emt 0:00:10]} 62. Kg5 {[%emt 0:00:43][%mdl 32768] Black defended with fortune.  Weighted Error Value: White=0.50/Black=0.15 (very precise) . Sensor Board Error (Ke4/e5)?} 1-0

[Event "Kvika Banki League Iceland 2022-23"]
[Site "Reykjavik"]
[Date "2022.10.14"]
[Round "2.7"]
[White "Einarsson, Arnthor"]
[Black "Einarsson, Halldor Gretar"]
[Result "1/2-1/2"]
[ECO "D78"]
[WhiteElo "2173"]
[BlackElo "2226"]
[Annotator "TA"]
[PlyCount "55"]
[EventDate "2022.10.13"]
[EventType "team-tourn"]
[EventCountry "ISL"]
[SourceTitle "playchess.com"]
[Source "ChessBase"]
[SourceQuality "1"]
[TimeControl "5400+30"]

{[%evp 12,55,18,-30,44,13,46,54,88,64,139,129,102,43,41,29,19,22,44,-176,-189,-183,-187,-182,-166,-181,-175,-162,-152,-176,-149,-156,-159,-146,-86,-81,-59,-76,-16,-16,-17,-22,-22,-22,-22,-25]} 1. d4 {[%emt 0:01:50]} Nf6 {[%emt 0:00:20]} 2. c4 {[%emt 0:00:10]} g6 {[%emt 0:00:10]} 3. Nc3 {[%emt 0:00:31]} d5 {[%emt 0:00:18]} 4. Nf3 {[%emt 0:00:35]} Bg7 {[%emt 0:00:11]} 5. g3 {[%emt 0:00:42]} O-O {[%emt 0:02:19]} 6. Bg2 {[%emt 0:00:29]} c6 {[%emt 0:00:21]} 7. O-O {[%emt 0:02:53]} (7. cxd5 {is superior.} cxd5 8. O-O) 7... h6 {[%emt 0:13:47] D78: Fianchetto Grünfeld: 6 0-0 c6.} (7... dxc4 $11 8. e4 b5) 8. Qb3 {[%emt 0:02:31]} dxc4 {[%emt 0:01:12]} 9. Qxc4 {[%emt 0:00:03] [#]} b5 $146 {[%emt 0:04:28] White is slightly better.} ({Predecessor:} 9... Be6 10. Qa4 Nd5 11. e4 Nxc3 12. bxc3 Nd7 13. Re1 b5 14. Qc2 Qa5 15. Bd2 Qa4 {1-0 (26) Valdes Romero,L (2377)-Pablo Marin,A (2383) Sabadell 2015}) 10. Qd3 {[%emt 0:05:25] White is more active.} Bf5 {[%emt 0:03:58]} ({Black should try} 10... Ba6 $14) 11. e4 $16 {[%emt 0:01:01]} Be6 {[%emt 0:00:06]} 12. d5 {[%emt 0:07:01]} (12. Rd1 $16) 12... b4 $14 {[%emt 0:06:22]} 13. Ne5 {[%emt 0:13:35]} (13. Rd1 $5 {[%cal Rd5e6]} Bg4 14. Ne2 $14) 13... Bc8 {[%emt 0:12:46][%cal Be6c8,Bc8a6,Ba6c4][%mdl 32]} 14. Ne2 {[%emt 0:07:11]} Ba6 {[%emt 0:11:28]} 15. Nc4 $2 {[%emt 0:01:28]} (15. Qc2 $1 $14) 15... cxd5 $19 {[%emt 0:02:23]} 16. exd5 {[%emt 0:00:07] [#]} Nbd7 $1 $36 {[%emt 0:00:58][%mdl 2048] Black has strong initiative.} 17. b3 {[%emt 0:02:27] [#]} Ne5 $1 {[%emt 0:02:12]} 18. Qd2 {[%emt 0:04:32]} Nxc4 {[%emt 0:05:20]} 19. bxc4 {[%emt 0:00:23]} Bxc4 {[%emt 0:00:39][%cal Rf6d5]} 20. Rd1 {[%emt 0:02:01] [#]} Nxd5 $1 {[%emt 0:06:29][%mdl 512]} 21. Bb2 {[%emt 0:01:52][%cal Bc1b2,Bb2c3,Bc3d2][%mdl 32] And now Bxg7 would win.} Nc3 $1 {[%emt 0:06:47]} 22. Bxc3 {[%emt 0:01:03]} Qxd2 {[%emt 0:08:27]} (22... bxc3 $142 23. Qe1 Qb6 24. Bxa8 c2) 23. Bxd2 $17 {[%emt 0:12:50]} Rad8 {[%emt 0:00:08]} 24. Bxb4 {[%emt 0:02:56] Strongly threatening Nc3.} Bxa1 {[%emt 0:00:16]} ({Better is} 24... Bxe2 $17 25. Rxd8 Rxd8 26. Bxe7 (26. Re1 Bc4 $17) 26... Rd2) 25. Rxa1 $11 {[%emt 0:00:16] The position is equal.} Rb8 {[%emt 0:00:22]} 26. Bxe7 {[%emt 0:00:24] A strong pair of Bishops.} Rfe8 {[%emt 0:00:33]} 27. Nd4 $1 {[%emt 0:00:34] Threatens to win with Nc6.} ({Don't play} 27. Bd6 Rbd8 28. Bc7 Rc8 $19) 27... Rxe7 {[%emt 0:03:29]} 28. Nc6 {[%emt 0:00:02][%csl LRb8,LRe7] Weighted Error Value: White=0.30/Black=0.21 (precise)} 1/2-1/2

[Event "Kvika Banki League Iceland 2022-23"]
[Site "Reykjavik"]
[Date "2022.10.14"]
[Round "2.8"]
[White "Hreinsson, Hlidar"]
[Black "Bergthorsson, Jon Thor"]
[Result "1/2-1/2"]
[ECO "B50"]
[WhiteElo "2170"]
[BlackElo "2145"]
[Annotator "TA"]
[PlyCount "151"]
[EventDate "2022.10.13"]
[EventType "team-tourn"]
[EventCountry "ISL"]
[SourceTitle "playchess.com"]
[Source "ChessBase"]
[SourceQuality "1"]
[TimeControl "5400+30"]

{[%evp 13,151,-11,-12,-8,0,0,10,-12,-6,-4,-2,-18,-15,-35,-29,-28,-18,-44,-37,-36,-36,-66,-52,-64,-12,-43,-25,-27,8,-14,-15,-24,0,0,0,0,0,0,6,-36,-23,-45,-46,-39,-31,-39,-40,-47,-47,-95,-89,-75,-70,-96,-99,-105,-105,-100,-99,-241,-128,-120,-98,-103,-81,-81,-37,-81,-82,-85,-83,-188,-58,-53,0,0,0,0,0,-73,-73,-73,-73,-73,-73,-73,-73,-99,0,0,0,0,0,0,0,-284,-284,-280,-267,-274,-236,-172,-71,-412,-410,-404,-338,-375,-350,-286,-271,-302,-271,-370,-391,-387,-385,-327,-253,-242,-224,-174,-168,-165,-167,-152,-149,-504,-379,-477,-467,-412,-350,-330,-32,-28,0,0,0,0]} 1. e4 {[%emt 0:00:04]} c5 {[%emt 0:00:50]} 2. Nf3 {[%emt 0:00:21]} d6 {[%emt 0:02:11]} 3. d3 {[%emt 0:04:05]} Nf6 {[%emt 0:01:46]} 4. Be2 {[%emt 0:00:20]} Nc6 {[%emt 0:00:25]} 5. c3 {[%emt 0:00:35]} g6 {[%emt 0:00:24]} 6. O-O {[%emt 0:00:17]} Bg7 {[%emt 0:01:40]} 7. h3 {[%emt 0:02:14]} O-O {[%emt 0:00:34]} 8. Re1 {[%emt 0:00:40] B50: Sicilian: 2...d6, Miscellaneous.} b6 {[%emt 0:08:07]} 9. Bg5 {[%emt 0:04:18] [#]} h6 $146 {[%emt 0:03:13]} ({Predecessor:} 9... Bb7 10. Nbd2 h6 11. Bf4 e5 12. Bh2 Nh5 13. Bf1 Re8 14. Rc1 Rc8 15. a3 a6 {½-½ (35) Mulligan,B (2248)-Simakov,V (2350) ICCF email 2014}) 10. Be3 {[%emt 0:07:43]} Bb7 {[%emt 0:02:46]} 11. Nbd2 {[%emt 0:01:50]} Rc8 {[%emt 0:04:50]} 12. Rc1 {[%emt 0:01:11]} e5 {[%emt 0:05:05]} 13. c4 {[%emt 0:34:17] Against d5} Ne8 {[%emt 0:10:48]} 14. Nb1 {[%emt 0:04:51]} f5 {[%emt 0:05:15]} 15. Nh2 {[%emt 0:03:39]} Nf6 {[%emt 0:05:18]} 16. Nc3 {[%emt 0:00:56]} Nd4 {[%emt 0:02:31]} (16... f4 $5 17. Bd2 $8 Nd4 $11) 17. Nd5 {[%emt 0:04:23]} Nxe2+ {[%emt 0:03:53]} 18. Rxe2 {[%emt 0:02:51]} Bxd5 {[%emt 0:02:21]} (18... fxe4 19. Nxf6+ Qxf6 20. dxe4 $11) (18... Nxd5 $15 19. exd5 b5) 19. exd5 {[%emt 0:03:47]} f4 {[%emt 0:01:47]} 20. Bd2 {[%emt 0:00:06]} Qd7 {[%emt 0:01:03]} 21. Re1 {[%emt 0:02:32]} Qf5 {[%emt 0:02:48]} 22. Bc3 {[%emt 0:02:12]} h5 {[%emt 0:01:05]} 23. Nf3 {[%emt 0:08:44]} Rce8 {[%emt 0:09:31][%cal Bc8e8,Be8e7,Be7g7,Bg7g2][%mdl 32]} 24. Nh4 {[%emt 0:00:58]} Qg5 {[%emt 0:00:08]} 25. Nf3 {[%emt 0:00:05]} Qh6 {[%emt 0:00:19]} 26. Nd2 {[%emt 0:00:04]} g5 {[%emt 0:02:02]} 27. Ne4 {[%emt 0:00:03]} Nxe4 {[%emt 0:03:59]} 28. dxe4 {[%emt 0:00:17]} Re7 {[%emt 0:02:18][%cal Og5g4]} (28... g4 {is interesting.} 29. f3 gxh3 30. gxh3 Bf6) 29. f3 {[%emt 0:01:58] Against g4} Bf6 {[%emt 0:01:01][%cal Og5g4]} 30. Kf1 {[%emt 0:00:41]} g4 {[%emt 0:01:08]} 31. Ke2 {[%emt 0:01:48]} (31. hxg4 $15 Bh4 32. Re2) 31... gxf3+ $17 {[%emt 0:01:59]} 32. gxf3 {[%emt 0:00:27]} Rg7 {[%emt 0:00:52]} 33. Rh1 {[%emt 0:01:02]} Rg2+ {[%emt 0:00:53]} 34. Kd3 {[%emt 0:00:33]} Kh8 {[%emt 0:03:20]} 35. Rc2 {[%emt 0:04:17]} Qg7 {[%emt 0:03:24]} 36. Be1 {[%emt 0:01:32]} (36. a4 $17 {was called for.}) 36... Rg8 {[%emt 0:00:30]} (36... Rg1 $19 37. Rxg1 Qxg1) 37. Rh2 {[%emt 0:01:06]} Rxh2 {[%emt 0:01:46]} 38. Rxh2 {[%emt 0:00:00]} Qg1 {[%emt 0:02:15]} 39. Qe2 {[%emt 0:00:01]} a6 {[%emt 0:00:57]} 40. Kc2 {[%emt 0:00:13]} b5 $1 {[%emt 0:00:43]} 41. cxb5 {[%emt 0:00:16]} axb5 {[%emt 0:00:02]} 42. Rf2 {[%emt 0:00:15] [#]} (42. Qf2 $17) 42... b4 {[%emt 0:01:58]} ({Black should try} 42... Bh4 $1 $19 {[%cal Rh4f2]} 43. Rf1 Qg2) 43. Rf1 $15 {[%emt 0:00:23]} Qd4 {[%emt 0:00:29]} (43... Qg7 $15) 44. Bf2 $11 {[%emt 0:01:16]} Rg2 {[%emt 0:00:15]} 45. Kb3 {[%emt 0:01:29]} Bh4 {[%emt 0:01:47]} 46. Bxd4 {[%emt 0:00:31]} (46. Qb5 $1 $11 {remains equal.} Bxf2 47. Qe8+ Rg8 48. Qxh5+ Kg7 49. Qg4+ Kf8 50. Qf5+ Ke7 51. Qe6+ Kf8 52. Qf5+ (52. Qf6+ Ke8 $11) 52... Kg7 53. Qg4+ Kh8 54. Qh5+ Kg7 55. Qg4+) 46... Rxe2 {[%emt 0:00:11][%mdl 4096] Endgame KRB-KRB} 47. Bg1 {[%emt 0:00:01]} Kg7 {[%emt 0:00:59]} 48. a4 {[%emt 0:00:12]} bxa3 $1 {[%emt 0:00:12]} 49. bxa3 {[%emt 0:00:06]} Kf7 {[%emt 0:00:15][%cal Oe2e3]} 50. a4 {[%emt 0:00:24]} Be1 {[%emt 0:00:07]} (50... Bd8 $17) 51. Kc4 {[%emt 0:00:16]} Bb4 {[%emt 0:00:19]} 52. Kb5 {[%emt 0:00:07]} Ra2 {[%emt 0:00:15]} 53. Bf2 {[%emt 0:00:12]} Rb2 {[%emt 0:01:41] Strongly threatening ...Be1+.} 54. Kc4 $2 {[%emt 0:01:08][%mdl 8192] [#]} (54. Kc6 $1 $11 {and White stays safe.} c4 55. Bb6) 54... Ba5 $1 $19 {[%emt 0:00:20]} 55. Bh4 {[%emt 0:01:32]} Rb4+ {[%emt 0:00:10]} 56. Kd3 {[%emt 0:00:00]} Rxa4 {[%emt 0:00:08] ...c4+ is the strong threat.} 57. Rb1 {[%emt 0:00:06]} Ra3+ {[%emt 0:00:20]} (57... c4+ $19 58. Kc2 Bb4) 58. Ke2 $2 {[%emt 0:00:06][%mdl 8192]} (58. Kc4 $17 {was the crucial defense.}) 58... Bb4 {[%emt 0:00:12]} 59. Bf2 {[%emt 0:00:39]} Ra4 {[%emt 0:00:51]} 60. Kd3 {[%emt 0:00:44]} Ra2 {[%emt 0:00:07]} 61. Rf1 {[%emt 0:01:21]} Ra3+ {[%emt 0:01:42]} 62. Ke2 {[%emt 0:00:01]} c4 {[%emt 0:00:38]} 63. Rc1 {[%emt 0:00:35]} Ra2+ {[%emt 0:00:14]} 64. Kf1 {[%emt 0:00:10]} c3 {[%emt 0:00:21] ( -> ...c2)} 65. Be1 {[%emt 0:00:07]} Rh2 {[%emt 0:00:23][%cal Oc3c2] aiming for ...c2!} 66. Kg1 {[%emt 0:00:08]} Rb2 {[%emt 0:00:17]} (66... Rxh3 67. Kg2 Rg3+ 68. Bxg3 fxg3 69. Kxg3 $11) 67. Bxc3 {[%emt 0:00:17]} Bc5+ {[%emt 0:00:27]} 68. Kh1 {[%emt 0:00:06]} Rf2 {[%emt 0:00:11] White must now prevent ...Ke8.} 69. Bxe5 {[%emt 0:00:16]} Rxf3 {[%emt 0:00:10]} ({Weaker is} 69... dxe5 70. Rxc5 Rxf3 71. h4 $11) 70. Bc3 $2 {[%emt 0:02:36][%mdl 8192]} (70. Kg2 $17 {is a better chance.} Rf2+ 71. Kh1) 70... Rxh3+ {[%emt 0:00:16]} 71. Kg2 {[%emt 0:00:02]} Re3 {[%emt 0:00:21] Threatens to win with ...f3+.} 72. e5 {[%emt 0:00:14]} f3+ {[%emt 0:00:49]} 73. Kf1 {[%emt 0:01:02]} dxe5 $2 {[%emt 0:01:02]} (73... h4 $19 {And now ...h3 would win.} 74. e6+ Kg6) 74. Bxe5 $15 {[%emt 0:00:17]} Rxe5 {[%emt 0:00:23]} 75. Rxc5 {[%emt 0:00:04]} Ke7 {[%emt 0:00:12]} 76. Kf2 {[%emt 0:00:14] Weighted Error Value: White=0.35/Black=0.18 (very precise)} 1/2-1/2

[Event "Kvika Banki League Iceland 2022-23"]
[Site "Reykjavik"]
[Date "2022.10.14"]
[Round "2.9"]
[White "Dziuba, Marcin"]
[Black "Oleksiyenko, Mykhaylo"]
[Result "1-0"]
[ECO "D10"]
[WhiteElo "2569"]
[BlackElo "2592"]
[Annotator "TA"]
[PlyCount "59"]
[EventDate "2022.10.13"]
[EventType "team-tourn"]
[EventCountry "ISL"]
[SourceTitle "playchess.com"]
[Source "ChessBase"]
[SourceQuality "1"]
[TimeControl "5400+30"]

{[%evp 11,59,25,22,16,25,26,30,26,32,23,34,25,29,10,37,25,25,20,69,69,72,77,102,102,129,116,115,78,156,128,210,214,387,102,374,383,399,399,390,369,399,399,390,370,479,479,397,390,352,330]} 1. d4 {[%emt 0:00:04]} d5 {[%emt 0:00:04]} 2. c4 {[%emt 0:00:06]} c6 {[%emt 0:00:04]} 3. Nc3 {[%emt 0:00:20]} Nf6 {[%emt 0:00:05]} 4. e3 {[%emt 0:00:08]} Bf5 {[%emt 0:00:13]} 5. cxd5 {[%emt 0:01:04]} cxd5 {[%emt 0:00:03]} 6. Qb3 {[%emt 0:00:05]} Bc8 {[%emt 0:00:03] 6...Nc6 is the hot move.} 7. Nf3 {[%emt 0:00:47] D10: Slav Defence: 3 cxd5 (without early Nf3) and 3 Nc3.} Nc6 {[%emt 0:00:10]} 8. Bd3 {[%emt 0:00:18]} e6 {[%emt 0:00:04]} 9. O-O {[%emt 0:00:25] White has an edge.} Be7 {[%emt 0:00:54]} 10. Bd2 {[%emt 0:00:36]} O-O {[%emt 0:00:07]} 11. Rfc1 {[%emt 0:00:40]} Bd7 {[%emt 0:01:19]} 12. a3 {[%emt 0:00:55] [#]} ({Don't blunder} 12. Qxb7 $2 Rb8 13. Qa6 Nb4 14. Bxh7+ Nxh7 $19) 12... Na5 $146 {[%emt 0:02:07]} (12... Qb8 {with more complications.} 13. Na4 Ne4 14. Bb4 Nxb4 15. axb4 Bd6) ({Predecessor:} 12... Rc8 13. Qa2 Bd6 14. b4 a6 15. b5 axb5 16. Nxb5 Bb8 17. Nc3 Na5 18. Rab1 Bc6 19. Ne2 Re8 20. Bb4 Nd7 21. Ng3 {½-½ (21) Polak,T (2514)-Hera,I (2605) Germany 2019}) 13. Qa2 {[%emt 0:00:28]} Nc6 {[%emt 0:01:15]} 14. b4 {[%emt 0:02:12][%cal Bb2b4,Bb4b5][%mdl 32]} Rc8 {[%emt 0:03:05]} (14... a6 $11) 15. b5 $14 {[%emt 0:05:10]} Na5 {[%emt 0:03:21]} 16. Ne5 {[%emt 0:02:02] Inhibits Nc4.} Be8 {[%emt 0:04:14]} 17. Ne2 {[%emt 0:24:33] [#] And now Rxc8 would win.} Rxc1+ {[%emt 0:02:40]} 18. Rxc1 {[%emt 0:00:15]} ({Resist} 18. Nxc1 Nd7 $14) 18... Nd7 {[%emt 0:12:29]} 19. a4 {[%emt 0:06:40] White is much more active.} Bd6 {[%emt 0:08:14]} ({Better is} 19... Nxe5 20. dxe5 h6) 20. Qc2 $16 {[%emt 0:18:47]} Nxe5 {[%emt 0:14:46]} (20... Nf6 $16 21. Qb2 Nh5) 21. dxe5 $18 {[%emt 0:00:08]} Bxe5 $2 {[%emt 0:00:07]} (21... Ba3 {is a better defense.}) 22. Bxh7+ {[%emt 0:04:57]} Kh8 {[%emt 0:00:07] Loses the game.} 23. Bxa5 {[%emt 0:07:05]} Qxa5 {[%emt 0:00:20]} 24. Qc5 {[%emt 0:00:07]} Kxh7 {[%emt 0:03:38]} 25. Qxf8 {[%emt 0:00:14]} Qd8 {[%emt 0:00:04] [#] Hoping for ...Bd6.} 26. Qc5 {[%emt 0:05:13]} a6 {[%emt 0:01:52]} 27. Qc8 {[%emt 0:02:55]} Qd7 {[%emt 0:00:39]} 28. f4 {[%emt 0:03:03]} Bd6 {[%emt 0:00:26]} 29. bxa6 {[%emt 0:01:51]} bxa6 {[%emt 0:00:02]} 30. Qxa6 {[%emt 0:00:11] Weighted Error Value: White=0.05 (flawless) /Black=0.29 (precise)} 1-0

[Event "Kvika Banki League Iceland 2022-23"]
[Site "Reykjavik"]
[Date "2022.10.14"]
[Round "2.10"]
[White "Kjartansson, Gudmundur"]
[Black "Pakleza, Zbigniew"]
[Result "1/2-1/2"]
[ECO "B10"]
[WhiteElo "2456"]
[BlackElo "2496"]
[Annotator "TA"]
[PlyCount "56"]
[EventDate "2022.10.13"]
[EventType "team-tourn"]
[EventCountry "ISL"]
[SourceTitle "playchess.com"]
[Source "ChessBase"]
[SourceQuality "1"]
[TimeControl "5400+30"]

{[%evp 9,56,0,26,3,13,8,7,0,0,0,0,0,-1,-5,0,0,0,0,10,15,0,0,0,0,0,0,0,0,0,0,0,0,0,0,0,0,0,-5,-3,-20,-23,-20,-18,-41,-6,-7,-8,-7,-8]} 1. e4 {[%emt 0:00:04]} c6 {[%emt 0:00:09]} 2. Nf3 {[%emt 0:01:03]} d5 {[%emt 0:00:05]} 3. d3 {[%emt 0:00:21]} dxe4 {[%emt 0:05:22]} 4. dxe4 {[%emt 0:00:06]} Qxd1+ {[%emt 0:00:02]} 5. Kxd1 {[%emt 0:00:07]} Bg4 {[%emt 0:00:29]} 6. Be3 {[%emt 0:01:35] B10: Caro-Kann: 2 d3 and 2 c4.} Nd7 {[%emt 0:01:46]} 7. Nbd2 {[%emt 0:00:21]} e6 {[%emt 0:08:25] [#]} 8. h3 $146 {[%emt 0:01:49]} ({Predecessor:} 8. Nb3 O-O-O 9. Ke1 Ngf6 10. Nfd2 e5 11. Bc4 Bh5 12. f3 Nb6 13. a4 Bb4 14. Be2 {1-0 (43) Hadzovic,A (2284)-Kurtcehajic,S (1978) Sarajevo 2021}) 8... Bxf3+ {[%emt 0:02:28]} 9. gxf3 {[%emt 0:00:05]} Bc5 {[%emt 0:00:40]} 10. Rg1 {[%emt 0:02:22]} g6 {[%emt 0:01:22]} 11. c3 {[%emt 0:01:12]} Ngf6 {[%emt 0:16:17]} 12. Kc2 {[%emt 0:00:47]} Bxe3 {[%emt 0:07:01]} 13. fxe3 {[%emt 0:00:06]} Ke7 {[%emt 0:00:24]} 14. a4 {[%emt 0:00:40]} Ne8 {[%emt 0:02:38]} 15. Nc4 {[%emt 0:06:10]} Nd6 {[%emt 0:00:38]} 16. Nxd6 {[%emt 0:00:42]} Kxd6 {[%emt 0:00:02]} 17. a5 {[%emt 0:02:00]} f5 {[%emt 0:06:09]} 18. Ra4 {[%emt 0:04:20]} Kc7 {[%emt 0:00:07]} 19. h4 {[%emt 0:03:38]} b5 {[%emt 0:05:22]} 20. axb6+ {[%emt 0:01:50]} axb6 {[%emt 0:00:08]} 21. Rxa8 {[%emt 0:03:01]} Rxa8 {[%emt 0:00:05]} 22. exf5 {[%emt 0:05:20]} exf5 $11 {[%emt 0:00:18][%mdl 4096] Endgame KRB-KRN} 23. Bd3 {[%emt 0:01:16][%cal Oh4h5]} Nf6 {[%emt 0:02:06]} 24. e4 {[%emt 0:06:45]} fxe4 {[%emt 0:01:00]} 25. Bxe4 {[%emt 0:07:17]} Ra5 {[%emt 0:02:30]} 26. Re1 {[%emt 0:00:57][%cal Oe4c6]} Nd7 {[%emt 0:06:27]} 27. Bd3 {[%emt 0:03:44]} Rh5 {[%emt 0:01:32]} 28. Re4 {[%emt 0:00:43]} Nc5 {[%emt 0:04:42] An uneventful encounter.  Weighted Error Value: White=0.02 (flawless) /Black=0.04 (flawless)} 1/2-1/2